{"text_format":"1","workbook":"xlsx","n_sheets":8,"sheets":["Instructies","Samenvatting","Loonkosten","Werkingskosten","ICT-materiaal","Cofinanciering","(Niet)toegestane kosten","Mogelijke kosten ICT"],"not_rendered":{"charts":0,"images":4,"macros":1,"external_links":0,"defined_names":0,"comments":0,"pivot_tables":0},"unopened":[],"bounds":{"document_bytes":16777216,"sheet_cells":100000,"rows_first":2000,"rows_last":500,"rows_between":2000,"halvings":0,"cell_chars":16384,"cell_head_chars":4096},"cells_cut":0,"cells_raw":0,"read":"whole","date_system":"1900"}

{"sheet":"Instructies","index":0,"n_rows":0,"n_cols":0,"rows_kept":0,"cut":false,"hidden":false,"merged":[[0,0,1048575,16383]]}

{"sheet":"Samenvatting","index":1,"n_rows":31,"n_cols":8,"rows_kept":31,"cut":false,"hidden":false,"merged":[[4,7,5,7],[0,0,0,1],[2,1,2,7],[4,1,5,1],[3,2,4,2],[3,3,4,3],[4,0,5,0]]}
["Samenvatting"]
[]
["PROJECTNAAM:"]
[null,null,"min. gevraagde subsidie e-inclusion","max. gevraagde subsidie e-inclusion",null,"JAAR 1","JAAR 2"]
["Aantal inwoners OCMW(s):",null,null,null,"Van:",45231,45597,"TOTALE PROJECTPERIODE"]
[null,null,{"$f":"_xlfn.IFS(B5>150000,60000,B5>50000,60000,B5>15000,60000,B5>9999,0,B5<9999,\" \")","v":" "},{"$f":"_xlfn.IFS(B5>150000,400000,B5>50000,250000,B5>15000,120000,B5>9999,60000,B5<9999,\" \")","v":" "},"Tot:",45596,45961]
["KOSTENZIJDE"]
["Loonkosten",null,null,null,null,{"$f":"SUM(Tabel5[Totale loonkost])","v":0},{"$f":"SUM(Tabel57[Totale loonkost])","v":0},{"$f":"SUM(F8:G8)","v":0}]
["Werkingskosten excl. BTW",null,null,null,null,{"$f":"SUM(Tabel2[Kostprijs excl. BTW])","v":0},{"$f":"SUM(Tabel24[Kostprijs excl. BTW])","v":0},{"$f":"SUM(F9:G9)","v":0}]
["BTW werkingskosten",null,null,null,null,{"$f":"SUM(Tabel2[BTW])","v":0},{"$f":"SUM(Tabel24[BTW])","v":0},{"$f":"SUM(F10:G10)","v":0}]
["Werkingskosten incl. BTW",null,null,null,null,{"$f":"SUM(F9+F10)","v":0},{"$f":"SUM(G9+G10)","v":0},{"$f":"SUM(H9+H10)","v":0}]
["ICT-materiaal excl. BTW",null,null,null,null,{"$f":"SUM(Tabel22[Kostprijs excl. BTW])","v":0},{"$f":"SUM(Tabel249[Kostprijs excl. BTW])","v":0},{"$f":"SUM(F12:G12)","v":0}]
["BTW ICT-materiaal",null,null,null,null,{"$f":"SUM(Tabel22[BTW])","v":0},{"$f":"SUM(Tabel249[BTW])","v":0},{"$f":"SUM(F13:G13)","v":0}]
["ICT-materiaal incl. BTW*",null,null,null,null,{"$f":"SUM(F12+F13)","v":0},{"$f":"SUM(G12+G13)","v":0},{"$f":"SUM(H12+H13)","v":0}]
[]
["TOTAAL KOSTENZIJDE:",null,null,null,null,{"$f":"SUM(F8+F9+F10+F12+F13)","v":0},{"$f":"SUM(G8+G9+G10+G12+G13)","v":0},{"$f":"SUM(H8+H9+H10+H12+H13)","v":0}]
[]
["COFINANCIERING"]
["Eigen middelen en cofinanciering van de projectleider en/of eventuele inkomsten van de begunstigde",null,null,null,null,{"$f":"SUM(Tabel2121527[Bedrag])","v":0},{"$f":"SUM(Tabel212152729[Bedrag])","v":0},{"$f":"SUM(F19:G19)","v":0}]
["Andere inkomsten project (mede-uitvoerder en/of andere organisatie(s))",null,null,null,null,{"$f":"SUM(Tabel2121528[Bedrag])","v":0},{"$f":"SUM(Tabel212152730[Bedrag])","v":0},{"$f":"SUM(F20:G20)","v":0}]
["Andere publieke inkomsten/subsidies (gevraagde of verkregen)",null,null,null,null,{"$f":"SUM(Tabel212152733[Bedrag])","v":0},{"$f":"SUM(Tabel212152735[Bedrag])","v":0},{"$f":"SUM(F21:G21)","v":0}]
[]
["TOTAAL COFINANCIERING*:",null,null,null,null,{"$f":"SUM(F19:F21)","v":0},{"$f":"SUM(G19:G21)","v":0},{"$f":"SUM(H19:H21)","v":0}]
[]
["Bedrag gevraagde subsidie in het kader van \"e-inclusion for Belgium - OCMW 2023\" excl. BTW",null,null,null,null,{"$f":"SUM(F27-F26)","v":0},{"$f":"SUM(G27-G26)","v":0},0]
["BTW gevraagde subsidie in het kader van \"e-inclusion for Belgium - OCMW 2023\"",null,null,null,null,{"$f":"SUM(F10+F13)","v":0},{"$f":"SUM(G10+G13)","v":0},0]
["Bedrag gevraagde subsidie in het kader van \"e-inclusion for Belgium - OCMW 2023\" incl. BTW",null,null,null,null,{"$f":"SUM(F16-F23)","v":0},{"$f":"SUM(G16-G23)","v":0},{"$f":"(H16-H23)","v":0}]
[]
["TOTAAL COFINANCIERING + SUBSIDIE:",null,null,null,null,{"$f":"SUM(F23+F27)","v":0},{"$f":"SUM(G23+G27)","v":0},{"$f":"SUM(H23+H27)","v":0}]
["* Kleurt bij 'ICT-materiaal incl. BTW' de cel rood, wil dit zeggen dat de grens van max. 25% aan ICT-materiaal wordt overschreden."]
["* Kleurt bij 'Totaal Ontvangstenzijde' de cel rood, wil dit zeggen dat er niet wordt voldaan aan de cofinanciering van min. 20%."]

{"sheet":"Loonkosten","index":2,"n_rows":21,"n_cols":6,"rows_kept":21,"cut":false,"hidden":false,"merged":[[8,0,8,5],[2,0,3,1],[0,0,0,1]]}
["Loonkosten"]
[]
["Bewijsstukken die tijdens de projectrapportage moeten worden ingediend (niet-exhaustief):",null,"• Maandelijkse salarisfiches/loonfiches of gelijkaardig (attesten, uittreksels uit elektronisch beheer,…)"]
[]
[]
["Let op: Lees zeker de infobrochure om te weten welke kosten als brutoloonkost worden gezien."]
[]
["Heb je meer dan de voorziene lijnen in de tabel(len) nodig, kan je zelf lijnen toevoegen door in de juiste tabel met je muis te klikken en dan op de knop 'Lijn toevoegen' hiernaast."]
["Hou ermee rekening dat een loonkost niet door een andere overheid/organisatie wordt betaald inzake dubbelfinanciering,"]
["Jaar 1","Functie/Organisatie","Bruto loonkost op jaarbasis","% betrokkenheid besteed aan het project (=%van VTE)","Duur (in maanden) betrokken bij het project","Totale loonkost"]
[null,null,null,null,null,{"$f":"(((Tabel5[[#This Row],[Bruto loonkost op jaarbasis]]/12)*Tabel5[[#This Row],[Duur (in maanden) betrokken bij het project]])*Tabel5[[#This Row],[% betrokkenheid besteed aan het project (=%van VTE)]])","v":0}]
[null,null,null,null,null,{"$f":"(((Tabel5[[#This Row],[Bruto loonkost op jaarbasis]]/12)*Tabel5[[#This Row],[Duur (in maanden) betrokken bij het project]])*Tabel5[[#This Row],[% betrokkenheid besteed aan het project (=%van VTE)]])","v":0}]
[null,null,null,null,null,{"$f":"(((Tabel5[[#This Row],[Bruto loonkost op jaarbasis]]/12)*Tabel5[[#This Row],[Duur (in maanden) betrokken bij het project]])*Tabel5[[#This Row],[% betrokkenheid besteed aan het project (=%van VTE)]])","v":0}]
[null,null,null,null,null,{"$f":"(((Tabel5[[#This Row],[Bruto loonkost op jaarbasis]]/12)*Tabel5[[#This Row],[Duur (in maanden) betrokken bij het project]])*Tabel5[[#This Row],[% betrokkenheid besteed aan het project (=%van VTE)]])","v":0}]
[null,null,null,null,null,{"$f":"(((Tabel5[[#This Row],[Bruto loonkost op jaarbasis]]/12)*Tabel5[[#This Row],[Duur (in maanden) betrokken bij het project]])*Tabel5[[#This Row],[% betrokkenheid besteed aan het project (=%van VTE)]])","v":0}]
["Jaar 2","Functie/Organisatie","Bruto loonkost op jaarbasis","% betrokkenheid besteed aan het project (=%van VTE)","Duur (in maanden) betrokken bij het project","Totale loonkost"]
[null,null,null,null,null,{"$f":"(((Tabel57[[#This Row],[Bruto loonkost op jaarbasis]]/12)*Tabel57[[#This Row],[Duur (in maanden) betrokken bij het project]])*Tabel57[[#This Row],[% betrokkenheid besteed aan het project (=%van VTE)]])","v":0}]
[null,null,null,null,null,{"$f":"(((Tabel57[[#This Row],[Bruto loonkost op jaarbasis]]/12)*Tabel57[[#This Row],[Duur (in maanden) betrokken bij het project]])*Tabel57[[#This Row],[% betrokkenheid besteed aan het project (=%van VTE)]])","v":0}]
[null,null,null,null,null,{"$f":"(((Tabel57[[#This Row],[Bruto loonkost op jaarbasis]]/12)*Tabel57[[#This Row],[Duur (in maanden) betrokken bij het project]])*Tabel57[[#This Row],[% betrokkenheid besteed aan het project (=%van VTE)]])","v":0}]
[null,null,null,null,null,{"$f":"(((Tabel57[[#This Row],[Bruto loonkost op jaarbasis]]/12)*Tabel57[[#This Row],[Duur (in maanden) betrokken bij het project]])*Tabel57[[#This Row],[% betrokkenheid besteed aan het project (=%van VTE)]])","v":0}]
[null,null,null,null,null,{"$f":"(((Tabel57[[#This Row],[Bruto loonkost op jaarbasis]]/12)*Tabel57[[#This Row],[Duur (in maanden) betrokken bij het project]])*Tabel57[[#This Row],[% betrokkenheid besteed aan het project (=%van VTE)]])","v":0}]

{"sheet":"Werkingskosten","index":3,"n_rows":21,"n_cols":7,"rows_kept":21,"cut":false,"hidden":false,"merged":[[2,0,4,1],[7,0,8,6]]}
["Werkingskosten"]
[]
["Bewijsstukken die tijdens de projectrapportage moeten worden ingediend (niet-exhaustief):",null,"• Aankooptickets/facturen"]
[null,null,"• Transporttickets duidelijk gelinkt aan het project"]
[null,null,"• Declaratie en/of andere bewijsstukken betreffende een verzoek tot terugbetaling van gemaakte kosten door een mede-uitvoerder"]
[]
["Heb je meer dan de voorziene lijnen in de tabel(len) nodig, kan je zelf lijnen toevoegen door in de juiste tabel met je muis te klikken en dan op de knop 'Lijn toevoegen' hiernaast."]
["Organisatie = naam mede-uitvoerder/contractant (indien de contractant nog niet bekend is, \"contractant nog te bepalen\" vermelden); \nOmschrijving = korte omschrijving van de kost (zowel hoeveelheden als eenheidsprijs vermelden); Doelstelling = maak duidelijk hoe de kost is gelinkt aan het project, aan welke doelstelling"]
[]
["Jaar 1","Organisatie","Omschrijving kost","Doelstelling","Kostprijs excl. BTW","BTW","Totaal"]
[null,null,null,null,null,null,{"$f":"SUM(Tabel2[[#This Row],[Kostprijs excl. BTW]],Tabel2[[#This Row],[BTW]])","v":0}]
[null,null,null,null,null,null,{"$f":"SUM(Tabel2[[#This Row],[Kostprijs excl. BTW]],Tabel2[[#This Row],[BTW]])","v":0}]
[null,null,null,null,null,null,{"$f":"SUM(Tabel2[[#This Row],[Kostprijs excl. BTW]],Tabel2[[#This Row],[BTW]])","v":0}]
[null,null,null,null,null,null,{"$f":"SUM(Tabel2[[#This Row],[Kostprijs excl. BTW]],Tabel2[[#This Row],[BTW]])","v":0}]
[null,null,null,null,null,null,{"$f":"SUM(Tabel2[[#This Row],[Kostprijs excl. BTW]],Tabel2[[#This Row],[BTW]])","v":0}]
["Jaar 2","Organisatie","Omschrijving kost","Doelstelling","Kostprijs excl. BTW","BTW","Totaal"]
[null,null,null,null,null,null,{"$f":"SUM(Tabel24[[#This Row],[Kostprijs excl. BTW]],Tabel24[[#This Row],[BTW]])","v":0}]
[null,null,null,null,null,null,{"$f":"SUM(Tabel24[[#This Row],[Kostprijs excl. BTW]],Tabel24[[#This Row],[BTW]])","v":0}]
[null,null,null,null,null,null,{"$f":"SUM(Tabel24[[#This Row],[Kostprijs excl. BTW]],Tabel24[[#This Row],[BTW]])","v":0}]
[null,null,null,null,null,null,{"$f":"SUM(Tabel24[[#This Row],[Kostprijs excl. BTW]],Tabel24[[#This Row],[BTW]])","v":0}]
[null,null,null,null,null,null,{"$f":"SUM(Tabel24[[#This Row],[Kostprijs excl. BTW]],Tabel24[[#This Row],[BTW]])","v":0}]

{"sheet":"ICT-materiaal","index":4,"n_rows":24,"n_cols":7,"rows_kept":24,"cut":false,"hidden":false,"merged":[[10,0,11,6],[2,0,4,1],[6,0,7,6]]}
["ICT-materiaal"]
[]
["Bewijsstukken die tijdens de projectrapportage moeten worden ingediend (niet-exhaustief):",null,"• Aankooptickets/facturen"]
[null,null,"• Transporttickets duidelijk gelinkt aan het project"]
[null,null,"• Declaratie en/of andere bewijsstukken betreffende een verzoek tot terugbetaling van gemaakte kosten door een mede-uitvoerder"]
[]
["De aankoop van informaticamateriaal voor projecten is beperkt tot 25% van de jaarlijks ontvangen subsidie incl. BTW, zodat projecten vooral gericht zijn op de ondersteuning en verhoging van vaardigheden van hun begunstigden. \nJe kan de lijst met informaticamateriaal bekijken op het tabblad 'Overzicht mogelijke kosten ICT',"]
[]
[]
["Heb je meer dan de voorziene lijnen in de tabel(len) nodig, kan je zelf lijnen toevoegen door in de juiste tabel met je muis te klikken en dan op de knop 'Lijn toevoegen' hiernaast."]
["Organisatie = naam mede-uitvoerder/contractant (indien de contractant nog niet bekend is, \"contractant nog te bepalen\" vermelden); \nOmschrijving = korte omschrijving van de kost (zowel hoeveelheden als eenheidsprijs vermelden); Doelstelling = maak duidelijk hoe de kost is gelinkt aan het project, aan welke doelstelling"]
[]
["Jaar 1","Organisatie","Omschrijving investering","Doelstelling","Kostprijs excl. BTW","BTW","Totaal"]
[null,null,null,null,null,null,{"$f":"(Tabel22[[#This Row],[Kostprijs excl. BTW]]+Tabel22[[#This Row],[BTW]])","v":0}]
[null,null,null,null,null,null,{"$f":"(Tabel22[[#This Row],[Kostprijs excl. BTW]]+Tabel22[[#This Row],[BTW]])","v":0}]
[null,null,null,null,null,null,{"$f":"(Tabel22[[#This Row],[Kostprijs excl. BTW]]+Tabel22[[#This Row],[BTW]])","v":0}]
[null,null,null,null,null,null,{"$f":"(Tabel22[[#This Row],[Kostprijs excl. BTW]]+Tabel22[[#This Row],[BTW]])","v":0}]
[null,null,null,null,null,null,{"$f":"(Tabel22[[#This Row],[Kostprijs excl. BTW]]+Tabel22[[#This Row],[BTW]])","v":0}]
["Jaar 2","Organisatie","Omschrijving investering","Doelstelling","Kostprijs excl. BTW","BTW","Totaal"]
[null,null,null,null,null,null,{"$f":"(Tabel249[[#This Row],[Kostprijs excl. BTW]]+Tabel249[[#This Row],[BTW]])","v":0}]
[null,null,null,null,null,null,{"$f":"(Tabel249[[#This Row],[Kostprijs excl. BTW]]+Tabel249[[#This Row],[BTW]])","v":0}]
[null,null,null,null,null,null,{"$f":"(Tabel249[[#This Row],[Kostprijs excl. BTW]]+Tabel249[[#This Row],[BTW]])","v":0}]
[null,null,null,null,null,null,{"$f":"(Tabel249[[#This Row],[Kostprijs excl. BTW]]+Tabel249[[#This Row],[BTW]])","v":0}]
[null,null,null,null,null,null,{"$f":"(Tabel249[[#This Row],[Kostprijs excl. BTW]]+Tabel249[[#This Row],[BTW]])","v":0}]

{"sheet":"Cofinanciering","index":5,"n_rows":18,"n_cols":14,"rows_kept":18,"cut":false,"hidden":false,"merged":[[2,0,3,13],[5,0,6,13],[9,0,10,2],[9,7,10,9],[9,11,10,13]]}
["Cofinanciering (eigen middelen + andere inkomsten)"]
[]
["Hou er rekening mee dat er zeker geen dubbelfinanciering is met de subsidie die u aanvraagt in het kader van de projectoproep \"e-inclusion for Belgium - OCMW 2023\" t.o.v. 'andere inkomsten project (mede-uitvoerder en/of andere organisatie(s))' en 'andere publieke inkomsten/subsidies (gevraagde of verkregen)'."]
[]
[]
["Elk project dat een financiering vraagt  zal vanaf het tweede jaar  (of vanaf het eerste jaar als het een verlenging is van een project dat al gefinancierd wordt door \"e-inclusion for Belgium - OCMW 2022\") een cofinanciering moeten aantonen van minstens 20% van het totaalbedrag van de subsidieerbare kosten van het project. Het OCMW (of de vereniging van OCMW's) dat de aanvraag doet, zal gepast moeten rechtvaardigen hoe het deze cofinanciering zal waarborgen (eigen middelen, andere subsidies). Er wordt echter geen enkele dubbele financiering van dezelfde uitgaven toegestaan.\nFinanciering uit een ander EU-fonds is niet toegestaan."]
[]
[]
["Heb je meer dan de voorziene lijnen in de tabel(len) nodig, kan je zelf lijnen toevoegen door in de juiste tabel met je muis te klikken en dan op de knop 'Lijn toevoegen' hiernaast."]
["Eigen middelen en cofinanciering van de projectleider en/of eventuele inkomsten van de begunstigde van het project",null,null,null,null,null,null,"Andere inkomsten project \n(mede-uitvoerder en/of andere organisatie(s))",null,null,null,"Andere publieke inkomsten/subsidies \n(gevraagde of verkregen)"]
[]
["Jaar 1","Herkomst","Bedrag",null,null,null,null,"Jaar 1","Herkomst","Bedrag",null,"Jaar 1","Herkomst","Bedrag"]
[]
[]
[]
[]
[]
["Jaar 2","Herkomst","Bedrag",null,null,null,null,"Jaar 2","Herkomst","Bedrag",null,"Jaar 2","Herkomst","Bedrag"]

{"sheet":"(Niet)toegestane kosten","index":6,"n_rows":25,"n_cols":9,"rows_kept":25,"cut":false,"hidden":false,"merged":[[24,0,24,14],[2,0,5,14],[7,0,8,6],[7,8,8,14],[9,0,23,6],[9,8,23,14]]}
["Overzicht (niet)toegestane kosten"]
[]
["De uitgaven moeten:\n•\t Gemaakt zijn tijdens de subsidieperiode: van november 2023 tot oktober 2025, \n•\t Gemaakt zijn door de begunstigde van de subsidie,\n•\t Opgenomen zijn in de boekhouding en identificeerbaar en controleerbaar zijn\nDe projecten mogen geen winstoogmerk nastreven."]
[]
[]
[]
[]
["De subsidie aan het OCMW (en haar mede-uitvoerders) kan worden gebruikt om de volgende kosten te financieren (indicatieve lijst):",null,null,null,null,null,null,null,"De volgende kosten zijn niet toegestaan als betoelaagbare uitgaven:"]
[]
["•\t Interne loonkosten van het personeel dat rechtstreeks aan het project zullen werken, in verhouding tot de tijd die zij aan het project zullen besteden;\n•\t Prestaties van derden buiten het OCMW (advies, expertise, opleider); \n•\t Werkingskosten en kosten van de activiteiten die rechtstreeks uit het project voortvloeien (gemaakt na de toekenning van de subsidie en vóór het einde van het project): administratiekosten, aankoop of huur van materiaal, enz. Opgelet: forfaits of overhead zijn niet toegestaan.\n•\t Huur en huurlasten die specifiek voor de uitvoering van het project zijn gemaakt (huur van een opleidingsruimte, enz.). Opgelet : huur en huurlasten van gebouwen die reeds eigendom zijn van het OCMW of de lokale besturen worden niet toegestaan.\n•\t Verplaatsingskosten in het kader van het project;\n•\t Ontwikkeling van papieren of communicatiemateriaal of op computer of digitaal communicatiemateriaal (stand, flyers, posters, website, online cursussen, applicaties, cartografie, video’s, enz.);\n•\t Aankoop van informaticamateriaal (maximaal 25% van het jaarlijks projectbudget);\n",null,null,null,null,null,null,null,"•\t Dubbele financiering;\n•\t Terugvorderbare BTW;\n• Huur en huurlasten van gebouwen die reeds eigendom zijn van het OCMW of de lokale besturen;\n•\t Restaurant- en cateringkosten;\n•\t Schadevergoedingen, boetes, financiële sancties, schulden en kosten in verband met schulden;\n•\t Extralegale voordelen (maaltijdcheques, etc.);\n•\t Kosten die vóór het project of na het einde van het project zijn gemaakt;\n•\t Afschrijvingskosten;\n•\t Reis- en verblijfkosten in het buitenland."]
[]
[]
[]
[]
[]
[]
[]
[]
[]
[]
[]
[]
[]
[]
["In geval van twijfel of tegenstrijdigheid over de in aanmerking komende uitgaven, geldt altijd steeds de Europese verordening inzake subsidies."]

{"sheet":"Mogelijke kosten ICT","index":7,"n_rows":30,"n_cols":13,"rows_kept":30,"cut":false,"hidden":false,"merged":[[29,0,29,12],[2,0,6,12],[8,0,9,4],[10,0,28,4],[10,6,28,11],[8,6,9,12],[10,12,17,12]]}
["Overzicht mogelijke informatica kosten (max. 25% van het budget)"]
[]
["De uitgaven moeten:\n•\t Gemaakt zijn tijdens de subsidieperiode: van november 2023 tot oktober 2025, \n•\t Gemaakt zijn door de begunstigde van de subsidie,\n•\t Opgenomen zijn in de boekhouding en identificeerbaar en controleerbaar zijn\nDe projecten mogen geen winstoogmerk nastreven.\nDe aankoop van informaticamateriaal voor projecten is beperkt tot 25% van de jaarlijks ontvangen subsidie incl. BTW."]
[]
[]
[]
[]
[]
["Wat wordt beschouwd als Informaticamateriaal \n(max. 25% van het jaarlijk budget):",null,null,null,null,null,"Wat wordt niet beschouwd als informaticamateriaal \n(dus niet mee te rekenen in de 25% aan informaticamateriaal):"]
[]
["•\t Laptop;\n•\t Desktop;\n•\t Tablet;\n•\t Smartphone;\n•\t Server;\n•\t Muis;\n•\t Headset;\n•\t Luidspreker;\n•\t Toetsenbord;\n•\t Printer;\n•\t Computerscherm;\n•\t Smartboard (+staander/voet);\n•\t Webcam;\n•\t Harde schijf;\n•\t Switch;\n•\t Projector;\n•\t Scanner;\n•\t 4G-stick;\n•\t SD-kaart - draagbare geheugenkaart;\n•\t 4G-5G router/mobile (WiFi)hotspot;\n•\t WiFi antenne;\n•\t Docking station;\n•\t USB-stick;\n•\t Modem\n",null,null,null,null,null,"•\t Installatiekosten van internet en/of WiFi-verbinding;\n•\t Installatiekosten van hardware/netwerk, netwerkconfiguratie;\n•\t Kosten voor computeronderhoud;\n•\t Onderhoudskosten voor glasvezelverbinding (fiber);\n•\t Onderhoud, hosting en beveiliging van de website;\n•\t Abonnements- of herlaadkosten voor mobiele telefoon;\n•\t Abonnementskosten voor internet;\n•\t Reset of computer installatiekosten;\n•\t Computerreparatie;\n•\t Computer aanpassen aan een handicap;\n•\t Verzekering tegen diefstal informaticamateriaal;\n•\t Inktcartridge;\n•\t Printpapier;\n•\t ID-kaartlezer;\n•\t EPN-toegangskaart;\n•\t Bescherming voor tablet, computer, smartphone;\n•\t Software: aankoop, licentie, abonnement + updates\n",null,null,null,null,null,"Diensten"]
[]
[]
[]
[]
[]
[]
[]
[]
[]
[]
[]
[]
[]
[]
[]
[]
[]
[]
["In geval van twijfel of tegenstrijdigheid over de in aanmerking komende uitgaven, geldt altijd steeds de Europese verordening inzake subsidies."]